[Event "Titled Tuesday Blitz March 29 Early 2022"]
[White "Balint, Vilmos"]
[Black "Delaney, Killian"]
[WhiteFideId "718050"]
[BlackFideId "2501570"]
[WhiteElo "2059"]
[BlackElo "2306"]
[Result "0-1"]
[Round "03"]
[TimeControl "180+1"]
[Date "2022.03.30"]
[WhiteClock "0:00:11"]
[BlackClock "0:00:40"]

1. e4 {[%clk 0:02:15]}  c6 {[%clk 0:02:59]} 2. d4 {[%clk 0:02:15]}  d5 {[%clk 0:02:59]} 3. e5 {[%clk 0:02:16]}  Bf5 {[%clk 0:02:59]} 4. Nf3 {[%clk 0:02:17]}  e6 {[%clk 0:02:59]} 5. Be2 {[%clk 0:02:18]}  Ne7 {[%clk 0:02:57]} 6. O-O {[%clk 0:02:18]}  Nd7 {[%clk 0:02:56]} 7. c4 {[%clk 0:02:18]}  dxc4 {[%clk 0:02:54]} 8. Bxc4 {[%clk 0:02:18]}  Nb6 {[%clk 0:02:54]} 9. Bd3 {[%clk 0:02:17]}  Qd7 {[%clk 0:02:51]} 10. Nc3 {[%clk 0:02:15]}  Bxd3 {[%clk 0:02:50]} 11. Qxd3 {[%clk 0:02:15]}  Nf5 {[%clk 0:02:48]} 12. Be3 {[%clk 0:02:14]}  Be7 {[%clk 0:02:47]} 13. Rfd1 {[%clk 0:02:13]}  O-O {[%clk 0:02:46]} 14. Ne4 {[%clk 0:02:13]}  Rad8 {[%clk 0:02:41]} 15. Qe2 {[%clk 0:02:12]}  Nd5 {[%clk 0:02:33]} 16. g3 {[%clk 0:02:04]}  Qc7 {[%clk 0:02:27]} 17. Rac1 {[%clk 0:02:02]}  Rd7 {[%clk 0:02:20]} 18. a3 {[%clk 0:02:02]}  Rfd8 {[%clk 0:02:20]} 19. Kg2 {[%clk 0:02:03]}  Qb6 {[%clk 0:02:16]} 20. g4 {[%clk 0:01:49]}  Nfxe3+ {[%clk 0:02:15]} 21. fxe3 {[%clk 0:01:50]}  Nc7 {[%clk 0:02:05]} 22. Qc2 {[%clk 0:01:42]}  h6 {[%clk 0:01:53]} 23. Rd3 {[%clk 0:01:41]}  Qb5 {[%clk 0:01:51]} 24. Rb3 {[%clk 0:01:38]}  Qd5 {[%clk 0:01:51]} 25. Rxb7 {[%clk 0:01:37]}  c5 {[%clk 0:01:47]} 26. Rxa7 {[%clk 0:01:27]}  cxd4 {[%clk 0:01:44]} 27. exd4 {[%clk 0:01:27]}  Nb5 {[%clk 0:01:44]} 28. Rxd7 {[%clk 0:01:25]}  Rxd7 {[%clk 0:01:43]} 29. Qc4 {[%clk 0:00:59]}  Qxe4 {[%clk 0:01:41]} 30. Qxb5 {[%clk 0:00:59]}  Rxd4 {[%clk 0:01:40]} 31. Qe8+ {[%clk 0:00:46]}  Bf8 {[%clk 0:01:40]} 32. Rc8 {[%clk 0:00:46]}  Qxg4+ {[%clk 0:01:24]} 33. Kf2 {[%clk 0:00:47]}  Rf4 {[%clk 0:01:23]} 34. Qxf8+ {[%clk 0:00:46]}  Kh7 {[%clk 0:01:23]} 35. Rc3 {[%clk 0:00:45]}  Qh4+ {[%clk 0:01:17]} 36. Ke2 {[%clk 0:00:43]}  Re4+ {[%clk 0:01:17]} 37. Re3 {[%clk 0:00:43]}  Qg4 {[%clk 0:01:13]} 38. Qxf7 {[%clk 0:00:41]}  Rf4 {[%clk 0:01:08]} 39. Qb7 {[%clk 0:00:38]}  Qg2+ {[%clk 0:01:03]} 40. Kd3 {[%clk 0:00:38]}  Qg6+ {[%clk 0:01:04]} 41. Kd2 {[%clk 0:00:37]}  Rc4 {[%clk 0:00:54]} 42. Qb3 {[%clk 0:00:34]}  Rg4 {[%clk 0:00:50]} 43. Qd3 {[%clk 0:00:34]}  Rg2+ {[%clk 0:00:51]} 44. Re2 {[%clk 0:00:33]}  Qxd3+ {[%clk 0:00:50]} 45. Kxd3 {[%clk 0:00:33]}  Rg4 {[%clk 0:00:50]} 46. Ke3 {[%clk 0:00:34]}  g5 {[%clk 0:00:50]} 47. Rc2 {[%clk 0:00:34]}  Ra4 {[%clk 0:00:50]} 48. Rc3 {[%clk 0:00:34]}  Kg6 {[%clk 0:00:50]} 49. b4 {[%clk 0:00:34]}  Kf5 {[%clk 0:00:49]} 50. Nd4+ {[%clk 0:00:34]}  Kxe5 {[%clk 0:00:49]} 51. Rb3 {[%clk 0:00:35]}  Kd5 {[%clk 0:00:44]} 52. Nb5 {[%clk 0:00:32]}  Kc4 {[%clk 0:00:40]} 53. Nc3 {[%clk 0:00:12]}  Kxb3 {[%clk 0:00:39]} 54. Nxa4 {[%clk 0:00:13]}  Kxa4 {[%clk 0:00:40]} 55. Ke4 {[%clk 0:00:14]}  h5 {[%clk 0:00:40]} 56. Ke5 {[%clk 0:00:14]}  g4 {[%clk 0:00:40]} 57. Kxe6 {[%clk 0:00:15]}  h4 {[%clk 0:00:40]} 58. Kf5 {[%clk 0:00:15]}  g3 {[%clk 0:00:40]} 59. hxg3 {[%clk 0:00:11]}  hxg3 {[%clk 0:00:40]} 0-1


[Site "https://www.chess.com"]

[Event "Titled Tuesday Blitz March 29 Early 2022"]
[White "Bashirli, Nail"]
[Black "Garv Gaur"]
[WhiteFideId "13406809"]
[BlackFideId "45030839"]
[WhiteElo "2333"]
[BlackElo "1950"]
[Result "0-1"]
[Round "03"]
[TimeControl "180+1"]
[Date "2022.03.30"]
[WhiteClock "0:00:35"]
[BlackClock "0:00:36"]

1. e4 {[%clk 0:03:00]}  c6 {[%clk 0:03:00]} 2. Nc3 {[%clk 0:02:59]}  d5 {[%clk 0:03:00]} 3. Nf3 {[%clk 0:02:59]}  Bg4 {[%clk 0:03:00]} 4. h3 {[%clk 0:02:55]}  Bxf3 {[%clk 0:03:00]} 5. Qxf3 {[%clk 0:02:56]}  Nf6 {[%clk 0:03:01]} 6. g3 {[%clk 0:02:53]}  e6 {[%clk 0:03:00]} 7. Bg2 {[%clk 0:02:53]}  Nbd7 {[%clk 0:02:57]} 8. O-O {[%clk 0:02:52]}  Bd6 {[%clk 0:02:51]} 9. d4 {[%clk 0:02:52]}  dxe4 {[%clk 0:02:51]} 10. Nxe4 {[%clk 0:02:53]}  Nxe4 {[%clk 0:02:51]} 11. Qxe4 {[%clk 0:02:54]}  Nf6 {[%clk 0:02:52]} 12. Qe2 {[%clk 0:02:54]}  h6 {[%clk 0:02:50]} 13. c4 {[%clk 0:02:53]}  O-O {[%clk 0:02:49]} 14. Rd1 {[%clk 0:02:53]}  Re8 {[%clk 0:02:49]} 15. a4 {[%clk 0:02:52]}  Qc7 {[%clk 0:02:48]} 16. c5 {[%clk 0:02:49]}  Bf8 {[%clk 0:02:44]} 17. b4 {[%clk 0:02:48]}  e5 {[%clk 0:02:37]} 18. dxe5 {[%clk 0:02:24]}  Rxe5 {[%clk 0:02:38]} 19. Qf3 {[%clk 0:02:18]}  Qe7 {[%clk 0:02:21]} 20. Bf4 {[%clk 0:02:17]}  Rd5 {[%clk 0:02:20]} 21. Re1 {[%clk 0:02:00]}  Qd7 {[%clk 0:02:17]} 22. Qe2 {[%clk 0:01:59]}  Re8 {[%clk 0:02:15]} 23. Qc2 {[%clk 0:01:54]}  Rxe1+ {[%clk 0:01:50]} 24. Rxe1 {[%clk 0:01:54]}  Rd4 {[%clk 0:01:51]} 25. Qc3 {[%clk 0:01:25]}  a5 {[%clk 0:01:51]} 26. b5 {[%clk 0:01:21]}  Rxa4 {[%clk 0:01:46]} 27. b6 {[%clk 0:01:21]}  Nd5 {[%clk 0:01:39]} 28. Qc2 {[%clk 0:00:50]}  Rb4 {[%clk 0:00:57]} 29. Rd1 {[%clk 0:00:42]}  Qe6 {[%clk 0:00:39]} 30. Bd2 {[%clk 0:00:36]}  Rb5 {[%clk 0:00:37]} 31. Rf1 {[%clk 0:00:35]}  Rxc5 {[%clk 0:00:36]} 0-1


[Site "https://www.chess.com"]

[Event "Titled Tuesday Blitz March 29 Early 2022"]
[White "Borodavkin, Anatoly"]
[Black "Fromm, Marius"]
[WhiteFideId "14150662"]
[BlackFideId "12993190"]
[WhiteElo "1845"]
[BlackElo "2414"]
[Result "0-1"]
[Round "03"]
[TimeControl "180+1"]
[Date "2022.03.30"]
[WhiteClock "0:00:04"]
[BlackClock "0:00:00"]

1. e4 {[%clk 0:03:00]}  c5 {[%clk 0:02:59]} 2. Nc3 {[%clk 0:03:00]}  d6 {[%clk 0:03:00]} 3. g3 {[%clk 0:03:01]}  Nc6 {[%clk 0:02:58]} 4. Bg2 {[%clk 0:03:01]}  g6 {[%clk 0:02:59]} 5. d3 {[%clk 0:03:01]}  Bg7 {[%clk 0:03:00]} 6. f4 {[%clk 0:03:01]}  e6 {[%clk 0:02:59]} 7. Nf3 {[%clk 0:03:01]}  Nge7 {[%clk 0:02:59]} 8. O-O {[%clk 0:03:01]}  O-O {[%clk 0:03:00]} 9. Be3 {[%clk 0:03:00]}  b6 {[%clk 0:02:59]} 10. e5 {[%clk 0:02:56]}  dxe5 {[%clk 0:02:55]} 11. Nxe5 {[%clk 0:02:47]}  Bb7 {[%clk 0:02:17]} 12. g4 {[%clk 0:02:33]}  Qc8 {[%clk 0:01:55]} 13. Nc4 {[%clk 0:02:28]}  Rd8 {[%clk 0:01:48]} 14. Ne4 {[%clk 0:02:24]}  Qc7 {[%clk 0:01:43]} 15. f5 {[%clk 0:01:42]}  exf5 {[%clk 0:01:24]} 16. Bf4 {[%clk 0:01:35]}  Qd7 {[%clk 0:01:16]} 17. Ned6 {[%clk 0:01:27]}  fxg4 {[%clk 0:00:28]} 18. Nxb7 {[%clk 0:01:20]}  Qxb7 {[%clk 0:00:27]} 19. Qxg4 {[%clk 0:01:20]}  Qd7 {[%clk 0:00:25]} 20. Qf3 {[%clk 0:01:12]}  Nd4 {[%clk 0:00:24]} 21. Qf2 {[%clk 0:01:06]}  Nd5 {[%clk 0:00:17]} 22. Ne5 {[%clk 0:00:59]}  Qe6 {[%clk 0:00:11]} 23. c4 {[%clk 0:00:56]}  Nxf4 {[%clk 0:00:11]} 24. Bxa8 {[%clk 0:00:35]}  Nh3+ {[%clk 0:00:11]} 25. Kh1 {[%clk 0:00:31]}  Nxf2+ {[%clk 0:00:12]} 26. Rxf2 {[%clk 0:00:31]}  Bxe5 {[%clk 0:00:10]} 27. Bg2 {[%clk 0:00:31]}  f5 {[%clk 0:00:09]} 28. Re1 {[%clk 0:00:30]}  Kg7 {[%clk 0:00:10]} 29. Bd5 {[%clk 0:00:27]}  Rxd5 {[%clk 0:00:09]} 30. cxd5 {[%clk 0:00:27]}  Qxd5+ {[%clk 0:00:10]} 31. Kg1 {[%clk 0:00:28]}  Bf6 {[%clk 0:00:06]} 32. Re3 {[%clk 0:00:21]}  Bg5 {[%clk 0:00:03]} 33. Re8 {[%clk 0:00:19]}  Nf3+ {[%clk 0:00:03]} 34. Kf1 {[%clk 0:00:19]}  Nd2+ {[%clk 0:00:03]} 35. Ke2 {[%clk 0:00:18]}  Qxa2 {[%clk 0:00:03]} 36. Ra8 {[%clk 0:00:13]}  Qxb2 {[%clk 0:00:03]} 37. Rxa7+ {[%clk 0:00:14]}  Kh6 {[%clk 0:00:03]} 38. Ke1 {[%clk 0:00:10]}  Qc1+ {[%clk 0:00:03]} 39. Ke2 {[%clk 0:00:10]}  Qc2 {[%clk 0:00:03]} 40. Ke1 {[%clk 0:00:10]}  Bh4 {[%clk 0:00:02]} 41. Rb7 {[%clk 0:00:03]}  Bxf2+ {[%clk 0:00:03]} 42. Kxf2 {[%clk 0:00:03]}  Ne4+ {[%clk 0:00:02]} 43. Kf3 {[%clk 0:00:04]}  Qf2# {[%clk 0:00:00]} 0-1


[Site "https://www.chess.com"]

[Event "Titled Tuesday Blitz March 29 Early 2022"]
[White "Bortnyk, Olexandr"]
[Black "Del Rio De Angelis, Salvador G."]
[WhiteFideId "14120828"]
[BlackFideId "2203138"]
[WhiteElo "2723"]
[BlackElo "2491"]
[Result "1-0"]
[Round "03"]
[TimeControl "180+1"]
[Date "2022.03.29"]
[WhiteClock "0:00:20"]
[BlackClock "0:00:39"]

1. d4 {[%clk 0:03:00]}  d6 {[%clk 0:02:59]} 2. e4 {[%clk 0:02:56]}  Nf6 {[%clk 0:02:58]} 3. Nc3 {[%clk 0:02:56]}  e5 {[%clk 0:02:59]} 4. Nf3 {[%clk 0:02:52]}  Nbd7 {[%clk 0:02:58]} 5. Rg1 {[%clk 0:02:52]}  g6 {[%clk 0:02:51]} 6. g4 {[%clk 0:02:50]}  Bg7 {[%clk 0:02:51]} 7. Be3 {[%clk 0:02:44]}  c6 {[%clk 0:02:52]} 8. h4 {[%clk 0:02:37]}  h5 {[%clk 0:02:46]} 9. dxe5 {[%clk 0:02:31]}  Nxg4 {[%clk 0:02:39]} 10. Bg5 {[%clk 0:01:58]}  Qb6 {[%clk 0:02:37]} 11. Rxg4 {[%clk 0:01:58]}  hxg4 {[%clk 0:02:36]} 12. e6 {[%clk 0:01:59]}  f6 {[%clk 0:02:27]} 13. Qxd6 {[%clk 0:01:44]}  Nc5 {[%clk 0:02:13]} 14. O-O-O {[%clk 0:01:38]}  fxg5 {[%clk 0:02:07]} 15. Nxg5 {[%clk 0:01:32]}  Bf6 {[%clk 0:01:41]} 16. Bc4 {[%clk 0:01:01]}  Rxh4 {[%clk 0:01:35]} 17. Qf4 {[%clk 0:00:56]}  Bxg5 {[%clk 0:01:13]} 18. Qxg5 {[%clk 0:00:56]}  Bxe6 {[%clk 0:01:13]} 19. Qxg6+ {[%clk 0:00:50]}  Ke7 {[%clk 0:01:13]} 20. Qg5+ {[%clk 0:00:41]}  Ke8 {[%clk 0:01:13]} 21. Qxh4 {[%clk 0:00:33]}  Bxc4 {[%clk 0:00:56]} 22. Qh8+ {[%clk 0:00:33]}  Ke7 {[%clk 0:00:55]} 23. Qxa8 {[%clk 0:00:33]}  Ne6 {[%clk 0:00:54]} 24. Qc8 {[%clk 0:00:25]}  Qxf2 {[%clk 0:00:51]} 25. Qxb7+ {[%clk 0:00:25]}  Kf6 {[%clk 0:00:52]} 26. Qxc6 {[%clk 0:00:23]}  Qc5 {[%clk 0:00:47]} 27. e5+ {[%clk 0:00:20]}  Kg5 {[%clk 0:00:39]} 28. Ne4+ {[%clk 0:00:20]} 1-0


[Site "https://www.chess.com"]

[Event "Titled Tuesday Blitz March 29 Early 2022"]
[White "Chen, Qi b"]
[Black "Zaksaite, Salomeja"]
[WhiteFideId "8614733"]
[BlackFideId "12801496"]
[WhiteElo "2432"]
[BlackElo "1953"]
[Result "0-1"]
[Round "03"]
[TimeControl "180+1"]
[Date "2022.03.30"]
[WhiteClock "0:00:04"]
[BlackClock "0:00:05"]

1. e4 {[%clk 0:03:00]}  c5 {[%clk 0:02:58]} 2. Nf3 {[%clk 0:03:01]}  e6 {[%clk 0:02:57]} 3. Nc3 {[%clk 0:02:59]}  Nc6 {[%clk 0:02:57]} 4. d4 {[%clk 0:02:59]}  cxd4 {[%clk 0:02:58]} 5. Nxd4 {[%clk 0:03:00]}  Nf6 {[%clk 0:02:58]} 6. a3 {[%clk 0:02:54]}  b6 {[%clk 0:02:54]} 7. Be3 {[%clk 0:02:52]}  Bb7 {[%clk 0:02:52]} 8. f3 {[%clk 0:02:42]}  Bc5 {[%clk 0:02:47]} 9. Qd2 {[%clk 0:02:37]}  O-O {[%clk 0:02:45]} 10. O-O-O {[%clk 0:02:30]}  Nxd4 {[%clk 0:02:28]} 11. Bxd4 {[%clk 0:02:30]}  Bxd4 {[%clk 0:02:29]} 12. Qxd4 {[%clk 0:02:30]}  d5 {[%clk 0:02:29]} 13. exd5 {[%clk 0:02:24]}  Nxd5 {[%clk 0:02:29]} 14. Nxd5 {[%clk 0:02:21]}  Qxd5 {[%clk 0:02:29]} 15. Qxd5 {[%clk 0:02:15]}  Bxd5 {[%clk 0:02:29]} 16. Ba6 {[%clk 0:02:05]}  Rfd8 {[%clk 0:02:22]} 17. c4 {[%clk 0:01:58]}  Bc6 {[%clk 0:02:20]} 18. Kc2 {[%clk 0:01:55]}  Kf8 {[%clk 0:02:19]} 19. Kc3 {[%clk 0:01:49]}  Ke7 {[%clk 0:02:18]} 20. b4 {[%clk 0:01:38]}  Ba4 {[%clk 0:01:57]} 21. Rxd8 {[%clk 0:01:36]}  Rxd8 {[%clk 0:01:58]} 22. c5 {[%clk 0:01:30]}  bxc5 {[%clk 0:01:15]} 23. bxc5 {[%clk 0:01:30]}  Rd1 {[%clk 0:01:16]} 24. Rxd1 {[%clk 0:01:24]}  Bxd1 {[%clk 0:01:17]} 25. Bb5 {[%clk 0:01:23]}  e5 {[%clk 0:01:14]} 26. Bc4 {[%clk 0:00:54]}  f6 {[%clk 0:01:13]} 27. h4 {[%clk 0:00:50]}  h6 {[%clk 0:01:09]} 28. Bd5 {[%clk 0:00:41]}  g5 {[%clk 0:01:06]} 29. hxg5 {[%clk 0:00:40]}  hxg5 {[%clk 0:01:06]} 30. g4 {[%clk 0:00:35]}  Kd7 {[%clk 0:00:42]} 31. Be4 {[%clk 0:00:31]}  Kc7 {[%clk 0:00:40]} 32. Kc4 {[%clk 0:00:30]}  Ba4 {[%clk 0:00:26]} 33. Kb4 {[%clk 0:00:24]}  Bd1 {[%clk 0:00:21]} 34. Kc3 {[%clk 0:00:21]}  Ba4 {[%clk 0:00:19]} 35. Bd5 {[%clk 0:00:19]}  Bd1 {[%clk 0:00:18]} 36. Kd3 {[%clk 0:00:19]}  Ba4 {[%clk 0:00:17]} 37. Ba8 {[%clk 0:00:18]}  Bd1 {[%clk 0:00:16]} 38. Ke4 {[%clk 0:00:16]}  Bc2+ {[%clk 0:00:16]} 39. Kd5 {[%clk 0:00:16]}  Bb3+ {[%clk 0:00:13]} 40. Ke4 {[%clk 0:00:16]}  Bc2+ {[%clk 0:00:13]} 41. Ke3 {[%clk 0:00:17]}  Bb1 {[%clk 0:00:12]} 42. Bd5 {[%clk 0:00:15]}  Bc2 {[%clk 0:00:11]} 43. Kd2 {[%clk 0:00:15]}  Bb1 {[%clk 0:00:11]} 44. Kc3 {[%clk 0:00:15]}  f5 {[%clk 0:00:09]} 45. Kb2 {[%clk 0:00:10]}  fxg4 {[%clk 0:00:06]} 46. fxg4 {[%clk 0:00:08]}  Bh7 {[%clk 0:00:05]} 47. Kc3 {[%clk 0:00:08]}  Bg6 {[%clk 0:00:04]} 48. Kc4 {[%clk 0:00:08]}  Be8 {[%clk 0:00:03]} 49. Kd3 {[%clk 0:00:08]}  Bd7 {[%clk 0:00:03]} 50. Bf3 {[%clk 0:00:07]}  Bc6 {[%clk 0:00:01]} 51. Be2 {[%clk 0:00:06]}  Bb5+ {[%clk 0:00:02]} 52. Ke3 {[%clk 0:00:06]}  Bxe2 {[%clk 0:00:02]} 53. Kxe2 {[%clk 0:00:07]}  Kc6 {[%clk 0:00:03]} 54. Ke3 {[%clk 0:00:07]}  Kxc5 {[%clk 0:00:04]} 55. Ke4 {[%clk 0:00:07]}  Kd6 {[%clk 0:00:05]} 56. a4 {[%clk 0:00:05]}  Ke6 {[%clk 0:00:05]} 57. a5 {[%clk 0:00:04]}  a6 {[%clk 0:00:05]} 0-1


[Site "https://www.chess.com"]

[Event "Titled Tuesday Blitz March 29 Early 2022"]
[White "Chigaev, Maksim"]
[Black "Martin Duque, Jesus"]
[WhiteFideId "4108116"]
[BlackFideId "2208954"]
[WhiteElo "2502"]
[BlackElo "2243"]
[Result "1-0"]
[Round "03"]
[TimeControl "180+1"]
[Date "2022.03.30"]
[WhiteClock "0:00:05"]
[BlackClock "0:00:21"]

1. e4 {[%clk 0:03:00]}  c5 {[%clk 0:02:59]} 2. Nc3 {[%clk 0:02:57]}  Nc6 {[%clk 0:02:59]} 3. Bb5 {[%clk 0:02:52]}  Nd4 {[%clk 0:02:59]} 4. Nf3 {[%clk 0:02:53]}  e6 {[%clk 0:02:59]} 5. O-O {[%clk 0:02:52]}  a6 {[%clk 0:03:00]} 6. Bd3 {[%clk 0:02:52]}  Nc6 {[%clk 0:03:00]} 7. Re1 {[%clk 0:02:52]}  g5 {[%clk 0:02:59]} 8. g3 {[%clk 0:02:23]}  Be7 {[%clk 0:02:54]} 9. Nd5 {[%clk 0:02:11]}  Bd6 {[%clk 0:02:39]} 10. Ne3 {[%clk 0:02:09]}  h5 {[%clk 0:02:38]} 11. Bf1 {[%clk 0:02:04]}  g4 {[%clk 0:02:30]} 12. Nh4 {[%clk 0:02:03]}  Be7 {[%clk 0:02:31]} 13. Neg2 {[%clk 0:02:00]}  Ne5 {[%clk 0:02:26]} 14. c3 {[%clk 0:01:46]}  c4 {[%clk 0:02:24]} 15. d4 {[%clk 0:01:45]}  cxd3 {[%clk 0:02:24]} 16. Bf4 {[%clk 0:01:46]}  d6 {[%clk 0:02:19]} 17. Bxd3 {[%clk 0:01:45]}  b5 {[%clk 0:02:12]} 18. a4 {[%clk 0:01:44]}  bxa4 {[%clk 0:01:59]} 19. Bc2 {[%clk 0:01:35]}  Nf6 {[%clk 0:01:58]} 20. Bxa4+ {[%clk 0:01:34]}  Kf8 {[%clk 0:01:58]} 21. Bxe5 {[%clk 0:01:16]}  dxe5 {[%clk 0:01:58]} 22. Qxd8+ {[%clk 0:01:17]}  Bxd8 {[%clk 0:01:59]} 23. Ne3 {[%clk 0:01:17]}  Bb7 {[%clk 0:01:53]} 24. Nc4 {[%clk 0:01:14]}  Bc7 {[%clk 0:01:53]} 25. Bc2 {[%clk 0:01:13]}  Ke7 {[%clk 0:01:53]} 26. Na5 {[%clk 0:01:06]}  Bxa5 {[%clk 0:01:48]} 27. Rxa5 {[%clk 0:01:07]}  Nd7 {[%clk 0:01:40]} 28. Ng2 {[%clk 0:01:07]}  Rhd8 {[%clk 0:01:32]} 29. Ne3 {[%clk 0:01:02]}  Rac8 {[%clk 0:01:25]} 30. h3 {[%clk 0:00:45]}  gxh3 {[%clk 0:01:25]} 31. Kh2 {[%clk 0:00:45]}  Rc5 {[%clk 0:01:25]} 32. Ra4 {[%clk 0:00:30]}  Nf6 {[%clk 0:01:25]} 33. Kxh3 {[%clk 0:00:30]}  Rd2 {[%clk 0:01:25]} 34. f3 {[%clk 0:00:31]}  Nh7 {[%clk 0:01:04]} 35. f4 {[%clk 0:00:20]}  h4 {[%clk 0:00:49]} 36. Kxh4 {[%clk 0:00:07]}  Rh2+ {[%clk 0:00:39]} 37. Kg4 {[%clk 0:00:07]}  exf4 {[%clk 0:00:37]} 38. gxf4 {[%clk 0:00:07]}  Rch5 {[%clk 0:00:36]} 39. Rg1 {[%clk 0:00:03]}  R5h4+ {[%clk 0:00:35]} 40. Kf3 {[%clk 0:00:04]}  R4h3+ {[%clk 0:00:34]} 41. Rg3 {[%clk 0:00:04]}  Nf6 {[%clk 0:00:28]} 42. Rxh3 {[%clk 0:00:04]}  Rxh3+ {[%clk 0:00:28]} 43. Ke2 {[%clk 0:00:04]}  Rh2+ {[%clk 0:00:26]} 44. Ke1 {[%clk 0:00:03]}  Nh5 {[%clk 0:00:27]} 45. Rb4 {[%clk 0:00:02]}  Bc6 {[%clk 0:00:27]} 46. e5 {[%clk 0:00:03]}  Rh4 {[%clk 0:00:26]} 47. Bd3 {[%clk 0:00:02]}  Nxf4 {[%clk 0:00:26]} 48. Bxa6 {[%clk 0:00:02]}  Rh1+ {[%clk 0:00:26]} 49. Kf2 {[%clk 0:00:03]}  Rb1 {[%clk 0:00:20]} 50. Rxf4 {[%clk 0:00:02]}  Rxb2+ {[%clk 0:00:20]} 51. Be2 {[%clk 0:00:03]}  Bb5 {[%clk 0:00:20]} 52. c4 {[%clk 0:00:03]}  Ba6 {[%clk 0:00:20]} 53. Ng4 {[%clk 0:00:03]}  Bb7 {[%clk 0:00:21]} 54. Nf6 {[%clk 0:00:02]}  Ba6 {[%clk 0:00:22]} 55. Rd4 {[%clk 0:00:03]}  Bc8 {[%clk 0:00:21]} 56. Ke3 {[%clk 0:00:03]}  Rc2 {[%clk 0:00:21]} 57. Bd3 {[%clk 0:00:03]}  Rc3 {[%clk 0:00:22]} 58. Rh4 {[%clk 0:00:04]}  Ra3 {[%clk 0:00:23]} 59. Kd4 {[%clk 0:00:04]}  Ra7 {[%clk 0:00:22]} 60. Rh8 {[%clk 0:00:04]}  Bd7 {[%clk 0:00:22]} 61. Be4 {[%clk 0:00:05]}  Rc7 {[%clk 0:00:22]} 62. Rb8 {[%clk 0:00:05]}  Ba4 {[%clk 0:00:22]} 63. Rb6 {[%clk 0:00:05]}  Rc8 {[%clk 0:00:20]} 64. Rb7+ {[%clk 0:00:05]}  Kf8 {[%clk 0:00:21]} 65. c5 {[%clk 0:00:05]}  Rd8+ {[%clk 0:00:21]} 66. Kc3 {[%clk 0:00:06]}  Rd1 {[%clk 0:00:21]} 67. Rb8+ {[%clk 0:00:05]}  Kg7 {[%clk 0:00:22]} 68. Rg8+ {[%clk 0:00:05]}  Kh6 {[%clk 0:00:22]} 69. Rg3 {[%clk 0:00:04]}  Rc1+ {[%clk 0:00:22]} 70. Kd4 {[%clk 0:00:04]}  Rd1+ {[%clk 0:00:22]} 71. Rd3 {[%clk 0:00:05]}  Re1 {[%clk 0:00:22]} 72. Rc3 {[%clk 0:00:04]}  Rd1+ {[%clk 0:00:21]} 73. Ke3 {[%clk 0:00:04]}  Re1+ {[%clk 0:00:21]} 74. Kd2 {[%clk 0:00:04]}  Rd1+ {[%clk 0:00:21]} 75. Ke2 {[%clk 0:00:04]}  Kg7 {[%clk 0:00:22]} 76. c6 {[%clk 0:00:05]}  Rb1 {[%clk 0:00:20]} 77. c7 {[%clk 0:00:05]}  Bd7 {[%clk 0:00:21]} 78. Nxd7 {[%clk 0:00:05]} 1-0


[Site "https://www.chess.com"]

[Event "Titled Tuesday Blitz March 29 Early 2022"]
[White "Cramling Bellon, Anna"]
[Black "Gatterer, Florian"]
[WhiteFideId "32009232"]
[BlackFideId "811688"]
[WhiteElo "1905"]
[BlackElo "2218"]
[Result "0-1"]
[Round "03"]
[TimeControl "180+1"]
[Date "2022.03.30"]
[WhiteClock "0:00:02"]
[BlackClock "0:00:07"]

1. d4 {[%clk 0:02:58]}  Nf6 {[%clk 0:02:59]} 2. c4 {[%clk 0:02:56]}  g6 {[%clk 0:02:58]} 3. Nc3 {[%clk 0:02:54]}  d5 {[%clk 0:02:58]} 4. cxd5 {[%clk 0:02:53]}  Nxd5 {[%clk 0:02:59]} 5. e4 {[%clk 0:02:51]}  Nxc3 {[%clk 0:02:59]} 6. bxc3 {[%clk 0:02:49]}  Bg7 {[%clk 0:02:59]} 7. Qa4+ {[%clk 0:02:36]}  Nd7 {[%clk 0:02:33]} 8. Nf3 {[%clk 0:02:33]}  O-O {[%clk 0:02:13]} 9. Bg5 {[%clk 0:02:32]}  h6 {[%clk 0:02:11]} 10. Bh4 {[%clk 0:02:27]}  Nb6 {[%clk 0:02:09]} 11. Qa3 {[%clk 0:02:26]}  g5 {[%clk 0:02:09]} 12. Bg3 {[%clk 0:02:25]}  Be6 {[%clk 0:01:58]} 13. d5 {[%clk 0:02:20]}  Bg4 {[%clk 0:01:57]} 14. Nd4 {[%clk 0:02:17]}  e5 {[%clk 0:01:43]} 15. Nc2 {[%clk 0:02:02]}  c6 {[%clk 0:01:35]} 16. Ne3 {[%clk 0:01:54]}  Bd7 {[%clk 0:01:27]} 17. d6 {[%clk 0:01:50]}  f5 {[%clk 0:01:13]} 18. exf5 {[%clk 0:01:44]}  Bxf5 {[%clk 0:01:13]} 19. Nxf5 {[%clk 0:01:41]}  Rxf5 {[%clk 0:01:12]} 20. Bd3 {[%clk 0:01:41]}  Rf6 {[%clk 0:01:05]} 21. Qb3+ {[%clk 0:01:23]}  Nd5 {[%clk 0:01:00]} 22. c4 {[%clk 0:01:15]}  Nf4 {[%clk 0:00:59]} 23. c5+ {[%clk 0:01:13]}  Kh8 {[%clk 0:00:47]} 24. Bxf4 {[%clk 0:01:07]}  exf4 {[%clk 0:00:44]} 25. O-O {[%clk 0:01:07]}  b6 {[%clk 0:00:34]} 26. Rfe1 {[%clk 0:00:31]}  bxc5 {[%clk 0:00:32]} 27. Re6 {[%clk 0:00:31]}  Rxe6 {[%clk 0:00:29]} 28. Qxe6 {[%clk 0:00:31]}  Qf6 {[%clk 0:00:25]} 29. Re1 {[%clk 0:00:18]}  Rd8 {[%clk 0:00:19]} 30. Qe4 {[%clk 0:00:11]}  Kg8 {[%clk 0:00:14]} 31. Qh7+ {[%clk 0:00:10]}  Kf8 {[%clk 0:00:14]} 32. Bg6 {[%clk 0:00:07]}  Qxd6 {[%clk 0:00:11]} 33. h3 {[%clk 0:00:06]}  c4 {[%clk 0:00:11]} 34. Bf5 {[%clk 0:00:04]}  Qf6 {[%clk 0:00:10]} 35. Re6 {[%clk 0:00:04]}  Qf7 {[%clk 0:00:09]} 36. Rg6 {[%clk 0:00:03]}  f3 {[%clk 0:00:07]} 37. g3 {[%clk 0:00:03]}  c3 {[%clk 0:00:06]} 38. Rxh6 {[%clk 0:00:02]}  c2 {[%clk 0:00:07]} 0-1


[Site "https://www.chess.com"]